fUST/lending_fUST_20250316
["ID","MTS","AMOUNT","RATE_DAILY","PERIOD"]
[356245430,1742135432476,-500.0,8.193e-05,2]
[356245431,1742135432485,-27275.67012195,8.2e-05,2]
[356245432,1742135432495,-151.0,8.214e-05,2]
[356245433,1742135432504,-250.81601493,8.214e-05,2]
[356245456,1742135440338,-301.33694815,8.132e-05,2]
[356245457,1742135440348,-500.0,8.193e-05,2]
[356245458,1742135440362,-349.18398507,8.214e-05,2]
[356245459,1742135440371,-504.35,8.219e-05,2]
[356245460,1742135440381,-500.0,8.219e-05,2]
[356245461,1742135440391,-500.0,8.219e-05,2]
[356245462,1742135440402,-157.52233353,8.219e-05,2]
[356245463,1742135440411,-500.0,8.219e-05,2]
[356245464,1742135440421,-283.64673325,8.219e-05,2]
[356245477,1742135443828,-500.0,8.193e-05,2]
[356245478,1742135443838,-500.0,8.193e-05,2]
[356245479,1742135443847,-221.9072682,8.193e-05,2]
[356245480,1742135443859,-278.0927318,8.193e-05,2]
[356245481,1742135443869,-135.3272682,8.219e-05,2]
[356245549,1742135445943,-81.02599855,8.219e-05,2]
[356245552,1742135445954,-506.26071742,8.219e-05,2]
[356245554,1742135445963,-600.31,8.219e-05,2]
[356245555,1742135445973,-500.0,8.219e-05,2]
[356245557,1742135445984,-500.0,8.219e-05,2]
[356245559,1742135445994,-500.0,8.219e-05,2]
[356245560,1742135446003,-500.0,8.219e-05,2]
[356245562,1742135446013,-500.0,8.219e-05,2]
[356245564,1742135446023,-500.0,8.219e-05,2]
[356245566,1742135446032,-500.0,8.219e-05,2]
[356245568,1742135446041,-500.0,8.219e-05,2]
[356245569,1742135446051,-500.0,8.219e-05,2]
[356245571,1742135446060,-500.0,8.219e-05,2]
[356245573,1742135446070,-524.72741128,8.219e-05,2]
[356245574,1742135446079,-500.0,8.219e-05,2]
[356245576,1742135446088,-500.0,8.219e-05,2]
[356245578,1742135446098,-506.20107156,8.219e-05,2]
[356245579,1742135446109,-500.0,8.219e-05,2]
[356245581,1742135446118,-276.8694766,8.219e-05,2]
[356245582,1742135446127,-500.0,8.219e-05,2]
[356245584,1742135446136,-500.0,8.219e-05,2]
[356245585,1742135446146,-500.0,8.219e-05,2]
[356245586,1742135446155,-500.0,8.219e-05,2]
[356245587,1742135446165,-640.31774019,8.219e-05,2]
[356245588,1742135446175,-500.0,8.219e-05,2]
[356245589,1742135446185,-239.16465581,8.219e-05,2]
[356245590,1742135446195,-500.0,8.219e-05,2]
[356245591,1742135446204,-503.68,8.219e-05,2]
[356245592,1742135446214,-500.0,8.219e-05,2]
[356245593,1742135446225,-590.97,8.219e-05,2]
[356245594,1742135446235,-500.0,8.219e-05,2]
[356245595,1742135446244,-500.0,8.219e-05,2]
[356245596,1742135446254,-500.0,8.219e-05,2]
[356245597,1742135446266,-500.0,8.219e-05,2]
[356245598,1742135446275,-500.0,8.219e-05,2]
[356245599,1742135446285,-500.0,8.219e-05,2]
[356245600,1742135446295,-500.0,8.219e-05,2]
[356245601,1742135446305,-500.0,8.219e-05,2]
[356245602,1742135446315,-500.0,8.219e-05,2]
[356245603,1742135446325,-605.95,8.219e-05,2]
[356245604,1742135446335,-615.21,8.219e-05,2]
[356245605,1742135446520,-582.23,8.219e-05,2]
[356245606,1742135446530,-500.0,8.219e-05,2]
[356245607,1742135446540,-500.0,8.219e-05,2]
[356245608,1742135446550,-503.281628,8.219e-05,2]
[356245609,1742135446560,-1326.26,8.219e-05,2]
[356245610,1742135446569,-500.0,8.219e-05,2]
[356245611,1742135446578,-515.63,8.219e-05,2]
[356245612,1742135446587,-500.0,8.219e-05,2]
[356245613,1742135446596,-500.0,8.219e-05,2]
[356245614,1742135446606,-500.0,8.219e-05,2]
[356245615,1742135446616,-500.0,8.219e-05,2]
[356245616,1742135446625,-618.82,8.219e-05,2]
[356245617,1742135446634,-500.0,8.219e-05,2]
[356245618,1742135446643,-626.59,8.219e-05,2]
[356245619,1742135446653,-586.65,8.219e-05,2]
[356245620,1742135446663,-500.0,8.219e-05,2]
[356245621,1742135446672,-517.96054689,8.219e-05,2]
[356245622,1742135446681,-500.0,8.219e-05,2]
[356245623,1742135446690,-430.64907895,8.219e-05,2]
[356245624,1742135446699,-500.0,8.219e-05,2]
[356245625,1742135446709,-1000.0,8.219e-05,2]
[356245626,1742135446718,-500.0,8.219e-05,2]
[356245627,1742135446727,-531.12,8.219e-05,2]
[356245628,1742135446737,-546.84,8.219e-05,2]
[356245629,1742135446746,-394.44042313,8.219e-05,2]
[356245630,1742135446755,-533.53,8.219e-05,2]
[356245631,1742135446764,-500.0,8.219e-05,2]
[356245632,1742135446773,-500.0,8.219e-05,2]
[356245633,1742135446782,-500.0,8.219e-05,2]
[356245634,1742135446793,-500.0,8.219e-05,2]
[356245635,1742135446802,-500.0,8.219e-05,2]
[356245636,1742135446812,-2800.66,8.219e-05,2]
[356245637,1742135446821,-1336.8,8.219e-05,2]
[356245638,1742135446831,-1067.98,8.219e-05,2]
[356245639,1742135446839,-929.71,8.219e-05,2]
[356245640,1742135446849,-500.0,8.219e-05,2]
[356245641,1742135446859,-500.0,8.219e-05,2]
[356245642,1742135446868,-3042.95,8.219e-05,2]
[356245643,1742135446878,-500.0,8.219e-05,2]
[356245644,1742135446887,-500.0,8.219e-05,2]
[356245645,1742135446897,-500.0,8.219e-05,2]
[356245646,1742135446906,-560.86,8.219e-05,2]
[356245647,1742135446916,-603.23490612,8.219e-05,2]
[356245648,1742135446926,-1576.01,8.219e-05,2]
[356245649,1742135446935,-500.0,8.219e-05,2]
[356245650,1742135446944,-500.0,8.219e-05,2]
[356245651,1742135446954,-1020.77,8.219e-05,2]
[356245652,1742135446964,-2444.52,8.219e-05,2]
[356245653,1742135446974,-500.0,8.219e-05,2]
[356245654,1742135446983,-1158.24,8.219e-05,2]
[356245655,1742135446993,-500.0,8.219e-05,2]
[356245656,1742135447002,-500.0,8.219e-05,2]
[356245657,1742135447012,-500.0,8.219e-05,2]
[356245658,1742135447021,-500.0,8.219e-05,2]
[356245659,1742135447031,-629.18755004,8.219e-05,2]
[356245660,1742135447040,-2561.05,8.219e-05,2]
[356245661,1742135447050,-500.0,8.219e-05,2]
[356245662,1742135447060,-318.50388481,8.219e-05,2]
[356245663,1742135447069,-500.0,8.219e-05,2]
[356245664,1742135447078,-500.0,8.219e-05,2]
[356245665,1742135447087,-578.06,8.219e-05,2]
[356245666,1742135447097,-500.0,8.219e-05,2]
[356245667,1742135447106,-500.0,8.219e-05,2]
[356245668,1742135447115,-500.0,8.219e-05,2]
[356245669,1742135447124,-500.0,8.219e-05,2]
[356245670,1742135447141,-518.09350791,8.219e-05,2]
[356245671,1742135447151,-500.0,8.219e-05,2]
[356245672,1742135447161,-615.46,8.219e-05,2]
[356245673,1742135447170,-500.0,8.219e-05,2]
[356245674,1742135447179,-500.0,8.219e-05,2]
[356245675,1742135447189,-500.0,8.219e-05,2]
[356245676,1742135447198,-596.52321307,8.219e-05,2]
[356245677,1742135447212,-411.83678693,8.219e-05,2]
[356245678,1742135447224,-1650.09,8.219e-05,2]
[356245679,1742135447234,-500.0,8.219e-05,2]
[356245680,1742135447243,-500.0,8.219e-05,2]
[356245681,1742135447253,-500.0,8.219e-05,2]
[356245682,1742135447264,-523.60724526,8.219e-05,2]
[356245683,1742135447274,-500.0,8.219e-05,2]
[356245684,1742135447283,-500.0,8.219e-05,2]
[356245685,1742135447293,-516.08,8.219e-05,2]
[356245686,1742135447304,-500.0,8.219e-05,2]
[356245687,1742135447313,-551.25,8.219e-05,2]
[356245688,1742135447322,-500.0,8.219e-05,2]
[356245689,1742135447331,-500.0,8.219e-05,2]
[356245690,1742135447341,-500.0,8.219e-05,2]
[356245691,1742135447351,-500.0,8.219e-05,2]
[356245692,1742135447362,-500.0,8.219e-05,2]
[356245693,1742135447372,-500.0,8.219e-05,2]
[356245694,1742135447381,-500.0,8.219e-05,2]
[356245695,1742135447391,-60.17949154,8.219e-05,2]
[356245698,1742135794982,-300.0,8.036e-05,2]
[356245699,1742135958563,191.91,0.000139,31]
[356245700,1742135959969,191.91,0.000139,31]
[356245701,1742136047083,-200.0,8.036e-05,2]
[356245702,1742136050006,-200.0,7.205e-05,2]
[356245703,1742136415873,-30.6202126,7.205e-05,2]
[356245704,1742136415896,-269.3797874,7.397e-05,2]
[356245706,1742136431109,-150.0,7.323e-05,2]
[356245710,1742136563868,188.08,0.000139,31]
[356245711,1742136563917,188.08,0.000139,31]
[356245712,1742136563989,188.08,0.000139,31]
[356245713,1742136564048,188.08,0.000139,31]
[356245714,1742136564105,188.08,0.000139,31]
[356245715,1742136564162,188.08,0.000139,31]
[356245716,1742136564411,188.08,0.000139,31]
[356245717,1742136564439,188.08,0.000139,31]
[356245718,1742136564470,188.08,0.000139,31]
[356245719,1742136564500,188.08,0.000139,31]
[356245720,1742136564531,188.08,0.000139,31]
[356245721,1742136564566,188.08,0.000139,31]
[356245722,1742136564604,188.08,0.000139,31]
[356245723,1742136564675,188.08,0.000139,31]
[356245724,1742136564715,188.08,0.000139,31]
[356245725,1742136564781,188.08,0.000139,31]
[356245726,1742136623413,-206.89660538,7.323e-05,2]
[356245736,1742136632440,-182.39159992,7.323e-05,2]
[356245737,1742136632451,-389.2882053,7.397e-05,2]
[356245738,1742136632462,-300.0,8.117e-05,2]
[356245739,1742136632472,-500.0,8.118e-05,2]
[356245740,1742136632481,-500.0,8.118e-05,2]
[356245741,1742136632491,-500.0,8.118e-05,2]
[356245742,1742136632501,-500.0,8.118e-05,2]
[356245743,1742136632511,-615.56567804,8.118e-05,2]
[356245744,1742136632521,-46181.03357547,8.119e-05,2]
[356245745,1742136632533,-16097.93,8.119e-05,2]
[356245768,1742136640525,-0.00402094,8.038e-05,2]
[356245803,1742136643157,-1860.43104064,8.038e-05,2]
[356245805,1742136643167,-2437.28852386,8.119e-05,2]
[356245823,1742136643329,-25402.14162694,8.119e-05,2]
[356245825,1742136643339,-600.0,8.214e-05,2]
[356245827,1742136643349,-166.95,8.219e-05,2]
[356245829,1742136643359,-222.88,8.219e-05,2]
[356245832,1742136643369,-1394.9,8.219e-05,2]
[356245834,1742136643382,-1000.0,8.219e-05,2]
[356245836,1742136643394,-158.29,8.219e-05,2]
[356245838,1742136643404,-500.0,8.219e-05,2]
[356245840,1742136643414,-209.41,8.219e-05,2]
[356245841,1742136643424,-252.04692832,8.219e-05,2]
[356245842,1742136643434,-527.62333481,8.219e-05,2]
[356245843,1742136643444,-528.96263705,8.219e-05,2]
[356245844,1742136643455,-500.0,8.219e-05,2]
[356245845,1742136643465,-164.97,8.219e-05,2]
[356245846,1742136643476,-280.88208758,8.219e-05,2]
[356245847,1742136643487,-398.07,8.219e-05,2]
[356245848,1742136643496,-291.67,8.219e-05,2]
[356245849,1742136643506,-500.0,8.219e-05,2]
[356245851,1742136643515,-500.0,8.219e-05,2]
[356245853,1742136643525,-2683.97,8.219e-05,2]
[356245855,1742136643535,-890.97,8.219e-05,2]
[356245857,1742136643545,-1023.49,8.219e-05,2]
[356245859,1742136643555,-500.0,8.219e-05,2]
[356245860,1742136643566,-500.0,8.219e-05,2]
[356245863,1742136643586,-500.0,8.219e-05,2]
[356245866,1742136643597,-611.39,8.219e-05,2]
[356245868,1742136643608,-2342.67,8.219e-05,2]
[356245870,1742136643619,-1109.98,8.219e-05,2]
[356245872,1742136643632,-1281.1,8.219e-05,2]
[356245874,1742136643643,-2454.34,8.219e-05,2]
[356245876,1742136643654,-500.0,8.219e-05,2]
[356245877,1742136643665,-500.0,8.219e-05,2]
[356245879,1742136643676,-2916.16,8.219e-05,2]
[356245880,1742136643687,-500.0,8.219e-05,2]
[356245881,1742136643698,-1510.34,8.219e-05,2]
[356245882,1742136643708,-966.35,8.219e-05,2]
[356245883,1742136643718,-500.0,8.219e-05,2]
[356245884,1742136643729,-500.0,8.219e-05,2]
[356245885,1742136643739,-2814.03,8.219e-05,2]
[356245886,1742136643749,-500.0,8.219e-05,2]
[356245887,1742136643759,-500.0,8.219e-05,2]
[356245888,1742136643769,-500.0,8.219e-05,2]
[356245889,1742136643779,-500.0,8.219e-05,2]
[356245890,1742136643789,-528.28,8.219e-05,2]
[356245891,1742136643799,-500.0,8.219e-05,2]
[356245892,1742136643809,-500.0,8.219e-05,2]
[356245893,1742136643819,-298.99897539,8.219e-05,2]
[356245894,1742136643829,-500.0,8.219e-05,2]
[356245895,1742136643840,-500.0,8.219e-05,2]
[356245896,1742136643851,-161.82,8.219e-05,2]
[356245897,1742136643863,-500.0,8.219e-05,2]
[356245898,1742136643874,-2167.0,8.219e-05,2]
[356245899,1742136643886,-903.14,8.219e-05,2]
[356245900,1742136643897,-500.0,8.219e-05,2]
[356245901,1742136643907,-500.0,8.219e-05,2]
[356245902,1742136643917,-500.0,8.219e-05,2]
[356245903,1742136643927,-5156.7,8.219e-05,2]
[356245904,1742136643937,-2329.62,8.219e-05,2]
[356245905,1742136643947,-706.11,8.219e-05,2]
[356245906,1742136643956,-500.0,8.219e-05,2]
[356245907,1742136643966,-533.38,8.219e-05,2]
[356245908,1742136643976,-500.0,8.219e-05,2]
[356245909,1742136643986,-500.0,8.219e-05,2]
[356245910,1742136643996,-500.0,8.219e-05,2]
[356245911,1742136644007,-509.67664486,8.219e-05,2]
[356245912,1742136644017,-500.0,8.219e-05,2]
[356245913,1742136644027,-500.0,8.219e-05,2]
[356245914,1742136644037,-500.0,8.219e-05,2]
[356245915,1742136644047,-500.0,8.219e-05,2]
[356245916,1742136644057,-5044.73,8.219e-05,2]
[356245917,1742136644067,-864.17,8.219e-05,2]
[356245918,1742136644077,-500.0,8.219e-05,2]
[356245919,1742136644088,-500.0,8.219e-05,2]
[356245920,1742136644098,-2009.4,8.219e-05,2]
[356245921,1742136644108,-152490.04,8.219e-05,2]
[356245922,1742136644119,-500.0,8.219e-05,2]
[356245923,1742136644129,-622.2,8.269e-05,2]
[356245924,1742136644139,-645.2214,8.324e-05,2]
[356245925,1742136644150,-155.5099414,8.33e-05,2]
[356245926,1742136644160,-1133.7637503,8.33e-05,2]
[356245927,1742136644170,-669.0945918,8.379e-05,2]
[356245928,1742136644180,-160.0,8.422e-05,2]
[356245929,1742136644190,-417.78412626,8.422e-05,2]
[356245930,1742136644204,-833.88055864,8.422e-05,2]
[356245931,1742136644214,-160.0,8.422e-05,2]
[356245932,1742136644224,-5611.4019436,8.422e-05,2]
[356245933,1742136644234,-160.0,8.422e-05,2]
[356245934,1742136644244,-693.8510917,8.434e-05,2]
[356245935,1742136644254,-719.52358209,8.489e-05,2]
[356245936,1742136644263,-196.0,8.49e-05,2]
[356245937,1742136644273,-151.0,8.493e-05,2]
[356245938,1742136644283,-1394.9,8.493e-05,2]
[356245939,1742136644293,-1000.0,8.493e-05,2]
[356245940,1742136644303,-500.0,8.493e-05,2]
[356245941,1742136644313,-500.0,8.493e-05,2]
[356245942,1742136644323,-2683.97,8.493e-05,2]
[356245943,1742136644333,-890.97,8.493e-05,2]
[356245944,1742136644343,-1023.49,8.493e-05,2]
[356245945,1742136644352,-500.0,8.493e-05,2]
[356245946,1742136644362,-500.0,8.493e-05,2]
[356245947,1742136644372,-611.39,8.493e-05,2]
[356245948,1742136644383,-2342.67,8.493e-05,2]
[356245949,1742136644393,-1109.98,8.493e-05,2]
[356245950,1742136644403,-1281.1,8.493e-05,2]
[356245951,1742136644413,-2454.34,8.493e-05,2]
[356245952,1742136644423,-500.0,8.493e-05,2]
[356245953,1742136644433,-500.0,8.493e-05,2]
[356245954,1742136644443,-2916.16,8.493e-05,2]
[356245955,1742136644453,-500.0,8.493e-05,2]
[356245956,1742136644463,-1510.34,8.493e-05,2]
[356245957,1742136644473,-966.35,8.493e-05,2]
[356245958,1742136644483,-500.0,8.493e-05,2]
[356245959,1742136644493,-500.0,8.493e-05,2]
[356245960,1742136644503,-2814.03,8.493e-05,2]
[356245961,1742136644513,-500.0,8.493e-05,2]
[356245962,1742136644523,-500.0,8.493e-05,2]
[356245963,1742136644532,-500.0,8.493e-05,2]
[356245964,1742136644542,-500.0,8.493e-05,2]
[356245965,1742136644553,-528.28,8.493e-05,2]
[356245966,1742136644563,-49.30879999,8.493e-05,2]
[356246049,1742136646452,-450.69120001,8.493e-05,2]
[356246051,1742136646463,-500.0,8.493e-05,2]
[356246053,1742136646472,-500.0,8.493e-05,2]
[356246055,1742136646482,-500.0,8.493e-05,2]
[356246057,1742136646491,-500.0,8.493e-05,2]
[356246059,1742136646500,-1692.20879999,8.493e-05,2]
[356246061,1742136646512,-474.79120001,8.493e-05,2]
[356246063,1742136646521,-903.14,8.493e-05,2]
[356246065,1742136646531,-500.0,8.493e-05,2]
[356246067,1742136646541,-397.73980935,8.493e-05,2]
[356247512,1742137176183,158.0,0.000139,31]
[356247513,1742137176252,158.0,0.000139,31]
[356247514,1742137176302,158.0,0.000139,31]
[356247515,1742137176366,158.0,0.000139,31]
[356247516,1742137176421,158.0,0.000139,31]
[356247517,1742137176485,158.0,0.000139,31]
[356247518,1742137176552,158.0,0.000139,31]
[356247519,1742137176605,158.0,0.000139,31]
[356247520,1742137176667,158.0,0.000139,31]
[356247521,1742137176719,158.0,0.000139,31]
[356247522,1742137176797,158.0,0.000139,31]
[356247523,1742137176868,158.0,0.000139,31]
[356247524,1742137176908,158.0,0.000139,31]
[356247525,1742137176968,158.0,0.000139,31]
[356247526,1742137177044,158.0,0.000139,31]
[356247527,1742137177095,158.0,0.000139,31]
[356247529,1742137484267,-421.25622313,7.397e-05,2]
[356247530,1742137507963,-161.4557644,7.396e-05,2]
[356247531,1742137787464,152.56,0.000139,31]
[356247532,1742137787523,152.56,0.000139,31]
[356247533,1742137787581,152.56,0.000139,31]
[356247534,1742137787670,152.56,0.000139,31]
[356247535,1742137787722,152.56,0.000139,31]
[356247536,1742137787766,152.56,0.000139,31]
[356247537,1742137787838,152.56,0.000139,31]
[356247538,1742137787906,152.56,0.000139,31]
[356247539,1742137787960,152.56,0.000139,31]
[356247540,1742137788018,152.56,0.000139,31]
[356247541,1742137788081,152.56,0.000139,31]
[356247542,1742137788150,152.56,0.000139,31]
[356247543,1742137788192,152.56,0.000139,31]
[356247544,1742137788241,152.56,0.000139,31]
[356247545,1742137788322,152.56,0.000139,31]
[356247546,1742137788382,152.56,0.000139,31]
[356247547,1742137788433,152.56,0.000139,31]
[356247579,1742137832367,-250.0,7.176e-05,2]
[356247581,1742137832377,-300.0,7.396e-05,2]
[356247583,1742137832387,-2114.39824401,7.397e-05,2]
[356247752,1742137840518,-3516.69347395,7.397e-05,2]
[356247764,1742137842800,-187.25236954,7.397e-05,2]
[356247775,1742137843284,-18660.39968937,7.397e-05,2]
[356247776,1742137843294,-640.61840867,8.118e-05,2]
[356247777,1742137843305,-5708.49009444,8.119e-05,2]
[356247778,1742137843314,-420.0,8.136e-05,2]
[356247779,1742137843324,-500.0,8.193e-05,2]
[356247780,1742137843333,-511.25562868,8.193e-05,2]
[356247781,1742137843343,-500.0,8.193e-05,2]
[356247782,1742137843352,-500.0,8.193e-05,2]
[356247783,1742137843361,-500.0,8.193e-05,2]
[356247784,1742137843371,-500.0,8.193e-05,2]
[356247785,1742137843381,-500.0,8.193e-05,2]
[356247786,1742137843391,-500.0,8.193e-05,2]
[356247787,1742137843400,-500.82198181,8.193e-05,2]
[356247788,1742137843410,-501.27003679,8.193e-05,2]
[356247789,1742137843420,-500.0,8.193e-05,2]
[356247791,1742137843429,-500.0,8.193e-05,2]
[356247793,1742137843439,-500.0,8.193e-05,2]
[356247795,1742137843449,-500.0,8.193e-05,2]
[356247797,1742137843458,-500.0,8.193e-05,2]
[356247799,1742137843468,-506.16548205,8.193e-05,2]
[356247801,1742137843477,-505.51005767,8.193e-05,2]
[356247803,1742137843486,-600.0,8.214e-05,2]
[356247805,1742137843496,-500.0,8.219e-05,2]
[356247807,1742137843505,-500.0,8.219e-05,2]
[356247808,1742137843514,-500.0,8.219e-05,2]
[356247809,1742137843524,-500.0,8.219e-05,2]
[356247810,1742137843533,-500.0,8.219e-05,2]
[356247811,1742137843542,-527.46692224,8.219e-05,2]
[356247812,1742137843553,-500.0,8.219e-05,2]
[356247813,1742137843562,-500.0,8.219e-05,2]
[356247814,1742137843572,-500.0,8.219e-05,2]
[356247815,1742137843582,-500.0,8.219e-05,2]
[356247816,1742137843591,-500.0,8.219e-05,2]
[356247817,1742137843600,-500.0,8.219e-05,2]
[356247818,1742137843610,-500.0,8.219e-05,2]
[356247819,1742137843620,-171.098,8.219e-05,2]
[356247820,1742137843630,-500.0,8.219e-05,2]
[356247821,1742137843640,-165.26793232,8.219e-05,2]
[356247822,1742137843649,-500.0,8.219e-05,2]
[356247823,1742137843658,-500.0,8.219e-05,2]
[356247824,1742137843668,-500.0,8.219e-05,2]
[356247825,1742137843677,-500.0,8.219e-05,2]
[356247826,1742137843686,-595.71,8.219e-05,2]
[356247827,1742137843695,-500.0,8.219e-05,2]
[356247828,1742137843705,-500.0,8.219e-05,2]
[356247829,1742137843714,-500.0,8.219e-05,2]
[356247830,1742137843723,-500.0,8.219e-05,2]
[356247831,1742137843733,-500.0,8.219e-05,2]
[356247832,1742137843743,-500.0,8.219e-05,2]
[356247833,1742137843752,-282.8016995,8.219e-05,2]
[356247834,1742137843762,-500.0,8.219e-05,2]
[356247835,1742137843771,-500.0,8.219e-05,2]
[356247836,1742137843781,-572.03345766,8.219e-05,2]
[356247837,1742137843790,-500.0,8.219e-05,2]
[356247838,1742137843801,-507.60684651,8.219e-05,2]
[356247839,1742137843811,-500.0,8.219e-05,2]
[356247840,1742137843820,-507.27148912,8.219e-05,2]
[356247841,1742137843831,-500.0,8.219e-05,2]
[356247842,1742137843840,-500.0,8.219e-05,2]
[356247843,1742137843850,-500.0,8.219e-05,2]
[356247844,1742137843860,-181.69634052,8.219e-05,2]
[356247845,1742137843869,-500.0,8.219e-05,2]
[356247846,1742137843879,-500.0,8.219e-05,2]
[356247847,1742137843888,-500.0,8.219e-05,2]
[356247848,1742137843898,-387.14274365,8.219e-05,2]
[356247849,1742137843909,-500.0,8.219e-05,2]
[356247850,1742137843919,-500.0,8.219e-05,2]
[356247851,1742137843929,-500.0,8.219e-05,2]
[356247852,1742137843939,-500.0,8.219e-05,2]
[356247853,1742137843952,-500.0,8.219e-05,2]
[356247854,1742137843962,-500.0,8.219e-05,2]
[356247855,1742137843972,-387.08221043,8.219e-05,2]
[356247856,1742137843982,-500.0,8.219e-05,2]
[356247857,1742137843994,-500.0,8.219e-05,2]
[356247858,1742137844004,-515.88947441,8.219e-05,2]
[356247859,1742137844014,-500.0,8.219e-05,2]
[356247860,1742137844025,-500.0,8.219e-05,2]
[356247861,1742137844035,-500.0,8.219e-05,2]
[356247862,1742137844045,-500.0,8.219e-05,2]
[356247863,1742137844055,-500.0,8.219e-05,2]
[356247864,1742137844065,-500.0,8.219e-05,2]
[356247865,1742137844075,-500.0,8.219e-05,2]
[356247866,1742137844085,-500.0,8.219e-05,2]
[356247867,1742137844095,-500.0,8.219e-05,2]
[356247868,1742137844105,-500.0,8.219e-05,2]
[356247869,1742137844115,-500.0,8.219e-05,2]
[356247870,1742137844125,-500.0,8.219e-05,2]
[356247871,1742137844135,-500.0,8.219e-05,2]
[356247872,1742137844145,-500.0,8.219e-05,2]
[356247873,1742137844154,-508.30604702,8.219e-05,2]
[356247874,1742137844164,-500.0,8.219e-05,2]
[356247875,1742137844173,-500.0,8.219e-05,2]
[356247876,1742137844182,-500.0,8.219e-05,2]
[356247877,1742137844191,-500.0,8.219e-05,2]
[356247878,1742137844201,-510.92194778,8.219e-05,2]
[356247879,1742137844211,-500.0,8.219e-05,2]
[356247880,1742137844220,-500.0,8.219e-05,2]
[356247881,1742137844229,-500.0,8.219e-05,2]
[356247882,1742137844239,-500.0,8.219e-05,2]
[356247883,1742137844249,-525.8,8.219e-05,2]
[356247884,1742137844259,-500.0,8.219e-05,2]
[356247885,1742137844269,-500.0,8.219e-05,2]
[356247886,1742137844278,-500.0,8.219e-05,2]
[356247887,1742137844287,-500.0,8.219e-05,2]
[356247888,1742137844296,-500.0,8.219e-05,2]
[356247889,1742137844306,-508.92757227,8.219e-05,2]
[356247890,1742137844316,-500.0,8.219e-05,2]
[356247891,1742137844326,-500.0,8.219e-05,2]
[356247892,1742137844336,-500.0,8.219e-05,2]
[356247893,1742137844346,-587.37,8.219e-05,2]
[356247894,1742137844355,-577.56,8.219e-05,2]
[356247895,1742137844365,-500.0,8.219e-05,2]
[356247896,1742137844375,-500.0,8.219e-05,2]
[356247897,1742137844385,-500.0,8.219e-05,2]
[356247898,1742137844395,-500.0,8.219e-05,2]
[356247899,1742137844404,-500.0,8.219e-05,2]
[356247900,1742137844414,-500.0,8.219e-05,2]
[356247901,1742137844423,-500.0,8.219e-05,2]
[356247902,1742137844433,-499.13031169,8.219e-05,2]
[356247903,1742137844443,-500.0,8.219e-05,2]
[356247904,1742137844453,-622.09,8.219e-05,2]
[356247905,1742137844463,-500.0,8.219e-05,2]
[356247906,1742137844472,-511.37458183,8.219e-05,2]
[356247907,1742137844482,-241.49961041,8.219e-05,2]
[356247908,1742137844498,-258.50038959,8.219e-05,2]
[356247909,1742137844508,-500.0,8.219e-05,2]
[356247910,1742137844518,-500.0,8.219e-05,2]
[356247911,1742137844527,-500.0,8.219e-05,2]
[356247912,1742137844537,-500.0,8.219e-05,2]
[356247913,1742137844547,-500.0,8.219e-05,2]
[356247914,1742137844556,-603.87,8.219e-05,2]
[356247915,1742137844566,-500.0,8.219e-05,2]
[356247916,1742137844576,-530.2458399,8.219e-05,2]
[356247917,1742137844585,-500.0,8.219e-05,2]
[356247918,1742137844595,-500.0,8.219e-05,2]
[356247919,1742137844604,-272.74136675,8.219e-05,2]
[356247920,1742137844614,-500.0,8.219e-05,2]
[356247922,1742137844624,-500.0,8.219e-05,2]
[356247924,1742137844634,-500.0,8.219e-05,2]
[356247926,1742137844643,-506.87914936,8.219e-05,2]
[356247928,1742137844652,-611.95,8.219e-05,2]
[356247929,1742137844662,-505.20632727,8.219e-05,2]